fUSD/lending_fUSD_20260513
["ID","MTS","AMOUNT","RATE_DAILY","PERIOD"]
[422158206,1778638232000,-74259.00141779,0.00013584,2]
[422158185,1778638232000,-150.0,0.00013488,2]
[422158203,1778638232000,-759.0,0.00013584,5]
[422158204,1778638232000,-117783.249885,0.00013584,2]
[422158205,1778638232000,-17379.32178542,0.00013584,2]
[422158202,1778638232000,-205.88223055,0.00013583,2]
[422158198,1778638232000,-218.24672886,0.00013583,2]
[422158201,1778638232000,-500.0,0.00013583,2]
[422158199,1778638232000,-500.0,0.00013583,2]
[422158207,1778638232000,-7749.70691013,0.00013584,2]
[422158197,1778638232000,-322.6675906,0.00013583,2]
[422158200,1778638232000,-483.83369994,0.00013583,2]
[422158189,1778638232000,-150.0,0.00013488,2]
[422158191,1778638232000,-150.0,0.00013488,2]
[422158194,1778638232000,-198.18494015,0.00013574,2]
[422158190,1778638232000,-202.64844241,0.00013488,2]
[422158192,1778638232000,-150.0,0.00013488,2]
[422158195,1778638232000,-150.0,0.00013583,2]
[422158196,1778638232000,-500.0,0.00013583,2]
[422158193,1778638232000,-6724.91212843,0.00013488,2]
[422158227,1778638238000,-500.0,0.00013583,2]
[422158219,1778638238000,-119.46522627,0.00013583,2]
[422158226,1778638238000,-500.0,0.00013583,2]
[422158222,1778638238000,-500.0,0.00013583,2]
[422158225,1778638238000,-500.0,0.00013583,2]
[422158224,1778638238000,-309.69503644,0.00013583,2]
[422158223,1778638238000,-174.29952816,0.00013583,2]
[422158221,1778638238000,-500.0,0.00013583,2]
[422158212,1778638238000,-500.0,0.00013583,2]
[422158218,1778638238000,-500.0,0.00013583,2]
[422158216,1778638238000,-109.5203508,0.00013583,2]
[422158217,1778638238000,-630.29987056,0.00013583,2]
[422158213,1778638238000,-500.0,0.00013583,2]
[422158215,1778638238000,-390.4796492,0.00013583,2]
[422158211,1778638238000,-203.260454,0.0001342,2]
[422158228,1778638238000,-500.0,0.00013583,2]
[422158220,1778638238000,-380.53477373,0.00013583,2]
[422158230,1778638238000,-500.0,0.00013583,2]
[422158214,1778638238000,-352.94202517,0.00013583,2]
[422158231,1778638238000,-500.0,0.00013583,2]
[422158229,1778638238000,-500.0,0.00013583,2]
[422158255,1778638238000,-500.0,0.00013583,2]
[422158253,1778638238000,-500.0,0.00013583,2]
[422158259,1778638238000,-500.0,0.00013583,2]
[422158257,1778638238000,-500.0,0.00013583,2]
[422158251,1778638238000,-500.0,0.00013583,2]
[422158247,1778638238000,-500.0,0.00013583,2]
[422158241,1778638238000,-500.0,0.00013583,2]
[422158245,1778638238000,-500.0,0.00013583,2]
[422158249,1778638238000,-500.0,0.00013583,2]
[422158239,1778638238000,-500.0,0.00013583,2]
[422158238,1778638238000,-500.0,0.00013583,2]
[422158237,1778638238000,-500.0,0.00013583,2]
[422158236,1778638238000,-500.0,0.00013583,2]
[422158232,1778638238000,-500.0,0.00013583,2]
[422158234,1778638238000,-500.0,0.00013583,2]
[422158235,1778638238000,-500.0,0.00013583,2]
[422158233,1778638238000,-500.0,0.00013583,2]
[422158243,1778638238000,-500.0,0.00013583,2]
[422158269,1778638239000,-500.0,0.00013583,2]
[422158273,1778638239000,-500.0,0.00013583,2]
[422158271,1778638239000,-500.0,0.00013583,2]
[422158261,1778638239000,-540.3897112,0.00013583,2]
[422158265,1778638239000,-500.0,0.00013583,2]
[422158267,1778638239000,-500.0,0.00013583,2]
[422158274,1778638239000,-500.0,0.00013583,2]
[422158263,1778638239000,-500.0,0.00013583,2]
[422158276,1778638239000,-500.0,0.00013583,2]
[422158285,1778638239000,-500.0,0.00013583,2]
[422158278,1778638239000,-500.0,0.00013583,2]
[422158282,1778638239000,-500.0,0.00013583,2]
[422158280,1778638239000,-500.0,0.00013583,2]
[422158284,1778638239000,-500.0,0.00013583,2]
[422158287,1778638239000,-500.0,0.00013583,2]
[422158289,1778638239000,-3181.84599897,0.00013584,2]
[422158291,1778638240000,-1233.46543271,0.00013584,2]
[422158294,1778638240000,-8260.93870433,0.00013584,2]
[422158293,1778638240000,-440.29780422,0.00013584,2]
[422158292,1778638240000,-214.72379078,0.00013584,2]
[422158296,1778638240000,-150.0,0.00013588,2]
[422158297,1778638240000,-6724.91212837,0.00013645,2]
[422158298,1778638240000,-198.18494015,0.00013673,2]
[422158299,1778638240000,-895029.33405057,0.00013683,2]
[422158300,1778638240000,-8086.4,0.00013683,2]
[422158295,1778638240000,-1972754.11253076,0.00013584,2]
[422158322,1778638243000,-500.0,0.00013783,2]
[422158320,1778638243000,-500.0,0.00013783,2]
[422158319,1778638243000,-500.0,0.00013783,2]
[422158317,1778638243000,-166.66,0.00013699,2]
[422158314,1778638243000,-5000.0,0.00013684,2]
[422158312,1778638243000,-2000.0,0.00013684,2]
[422158316,1778638243000,-150.0,0.00013687,2]
[422158306,1778638243000,-250.84311139,0.00013361,2]
[422158313,1778638243000,-33166.2013,0.00013684,2]
[422158311,1778638243000,-594367.20717268,0.00013683,2]
[422158310,1778638243000,-500.97646705,0.00013683,2]
[422158309,1778638243000,-975.07026803,0.00013683,2]
[422158308,1778638243000,-584.65516556,0.00013683,2]
[422158307,1778638243000,-456.35687611,0.00013683,2]
[422158318,1778638243000,-1002.11109105,0.00013782,2]
[422158315,1778638243000,-2500.0,0.00013684,2]
[422158321,1778638243000,-500.0,0.00013783,2]
[422158335,1778638243000,-508.15857838,0.00013783,2]
[422158325,1778638243000,-516.19452836,0.00013783,2]
[422158324,1778638243000,-512.35752927,0.00013783,2]
[422158340,1778638243000,-500.0,0.00013783,2]
[422158337,1778638243000,-500.0,0.00013783,2]
[422158341,1778638243000,-500.0,0.00013783,2]
[422158338,1778638243000,-500.0,0.00013783,2]
[422158332,1778638243000,-500.0,0.00013783,2]
[422158336,1778638243000,-500.0,0.00013783,2]
[422158334,1778638243000,-500.0,0.00013783,2]
[422158339,1778638243000,-567.32867421,0.00013783,2]
[422158333,1778638243000,-500.0,0.00013783,2]
[422158323,1778638243000,-500.0,0.00013783,2]
[422158329,1778638243000,-322.25795915,0.00013783,2]
[422158326,1778638243000,-500.0,0.00013783,2]
[422158328,1778638243000,-500.0,0.00013783,2]
[422158327,1778638243000,-426.76234403,0.00013783,2]
[422158331,1778638243000,-500.0,0.00013783,2]
[422158330,1778638243000,-500.0,0.00013783,2]
[422158362,1778638244000,-666.0,0.00013783,2]
[422158359,1778638244000,-503.97547797,0.00013783,2]
[422158361,1778638244000,-300.0,0.00013783,2]
[422158367,1778638244000,-500.0,0.00013835,2]
[422158368,1778638244000,-500.0,0.00013835,2]
[422158365,1778638244000,-150.0,0.00013787,2]
[422158364,1778638244000,-666.0,0.00013783,2]
[422158366,1778638244000,-6724.91212837,0.00013802,2]
[422158370,1778638244000,-500.0,0.00013835,2]
[422158372,1778638244000,-500.0,0.00013835,2]
[422158358,1778638244000,-513.28265688,0.00013783,2]
[422158369,1778638244000,-500.0,0.00013835,2]
[422158354,1778638244000,-500.0,0.00013783,2]
[422158346,1778638244000,-500.0,0.00013783,2]
[422158353,1778638244000,-500.0,0.00013783,2]
[422158355,1778638244000,-500.0,0.00013783,2]
[422158352,1778638244000,-500.0,0.00013783,2]
[422158351,1778638244000,-500.0,0.00013783,2]
[422158349,1778638244000,-500.0,0.00013783,2]
[422158348,1778638244000,-500.0,0.00013783,2]
[422158350,1778638244000,-500.0,0.00013783,2]
[422158347,1778638244000,-500.0,0.00013783,2]
[422158345,1778638244000,-500.0,0.00013783,2]
[422158343,1778638244000,-500.0,0.00013783,2]
[422158342,1778638244000,-500.0,0.00013783,2]
[422158344,1778638244000,-500.0,0.00013783,2]
[422158356,1778638244000,-500.0,0.00013783,2]
[422158373,1778638244000,-500.0,0.00013835,2]
[422158363,1778638244000,-300.0,0.00013783,2]
[422158371,1778638244000,-500.0,0.00013835,2]
[422158407,1778638244000,-112627.37954992,0.00013883,2]
[422158404,1778638244000,-500.0,0.00013883,2]
[422158401,1778638244000,-511.46999938,0.00013883,2]
[422158405,1778638244000,-587.22487576,0.00013883,2]
[422158403,1778638244000,-328.96531511,0.00013883,2]
[422158400,1778638244000,-500.0,0.00013883,2]
[422158399,1778638244000,-500.0,0.00013883,2]
[422158377,1778638244000,-500.0,0.00013835,2]
[422158397,1778638244000,-500.0,0.00013883,2]
[422158395,1778638244000,-500.0,0.00013883,2]
[422158388,1778638244000,-1035.455,0.00013882,2]
[422158386,1778638244000,-308.86950042,0.00013882,2]
[422158384,1778638244000,-166.66,0.00013836,2]
[422158392,1778638244000,-500.0,0.00013883,2]
[422158398,1778638244000,-500.0,0.00013883,2]
[422158390,1778638244000,-500.0,0.00013883,2]
[422158387,1778638244000,-300.0,0.00013882,2]
[422158389,1778638244000,-500.0,0.00013882,2]
[422158385,1778638244000,-151.0,0.00013881,2]
[422158381,1778638244000,-500.0,0.00013835,2]
[422158383,1778638244000,-204.2073012,0.00013835,2]
[422158382,1778638244000,-500.0,0.00013835,2]
[422158380,1778638244000,-441.85352659,0.00013835,2]
[422158378,1778638244000,-372.10153075,0.00013835,2]
[422158379,1778638244000,-436.43001358,0.00013835,2]
[422158376,1778638244000,-500.0,0.00013835,2]
[422158375,1778638244000,-500.0,0.00013835,2]
[422158374,1778638244000,-169.00563512,0.00013835,2]
[422158394,1778638244000,-500.0,0.00013883,2]
[422158429,1778638246000,-7956.57427574,0.00013883,2]
[422158430,1778638246000,-424.0197744,0.00013883,2]
[422158428,1778638246000,-331.77212326,0.00013488,2]
[422158431,1778638247000,-2411.05555928,0.00013883,2]
[422158432,1778638247000,-18320.11157298,0.00013883,2]
[422158496,1778638364000,1708.03,0.00041272,120]
[422158499,1778638377000,195.95161181,0.00041272,120]
[422158501,1778638387000,152.0,0.00013739,7]
[422158504,1778638425000,6344.0,0.00041272,120]
[422158508,1778638476000,312.32972148,0.00041272,120]
[422158512,1778638480000,-1218.84,0.00012964,2]
[422158510,1778638480000,-581.16,0.00012922,2]
[422158511,1778638480000,-200.0,0.00012964,2]
[422158514,1778638483000,-204.21,0.00013057,2]
[422158513,1778638483000,-781.16,0.00012964,2]
[422158515,1778638483000,-581.16,0.00013245,2]
[422158516,1778638483000,-433.47,0.00013536,2]
[422158517,1778638484000,-233.173,0.00013536,2]
[422158518,1778638484000,-581.16,0.00013568,2]
[422158519,1778638484000,-151.0,0.00013581,2]
[422158521,1778638484000,-150.0,0.00013582,2]
[422158522,1778638484000,-300.0,0.00013582,2]
[422158520,1778638484000,-151.0,0.00013581,2]
[422158524,1778638484000,-162.21220177,0.00013583,2]
[422158526,1778638484000,-595.87920177,0.00013583,2]
[422158525,1778638484000,-595.87920177,0.00013583,2]
[422158527,1778638484000,-595.87920177,0.00013583,2]
[422158528,1778638484000,-50.15019292,0.00013583,2]
[422158523,1778638484000,-433.667,0.00013583,2]
[422158532,1778638485000,-262.51258761,0.00013583,2]
[422158530,1778638485000,-595.87920177,0.00013583,2]
[422158531,1778638485000,-595.87920177,0.00013583,2]
[422158529,1778638485000,-545.72900885,0.00013583,2]
[422158534,1778638485000,-595.87920177,0.00013583,2]
[422158535,1778638485000,-595.87920177,0.00013583,2]
[422158536,1778638485000,-474.8749823,0.00013583,2]
[422158537,1778638485000,-121.00421947,0.00013583,2]
[422158533,1778638485000,-333.36661416,0.00013583,2]
[422158539,1778638486000,-500.0,0.00013583,2]
[422158538,1778638486000,-500.0,0.00013583,2]
[422158540,1778638486000,-500.0,0.00013583,2]
[422158541,1778638486000,-378.99578053,0.00013583,2]
[422158542,1778638486000,-121.00421947,0.00013583,2]
[422158543,1778638486000,-500.0,0.00013583,2]
[422158544,1778638486000,-500.0,0.00013583,2]
[422158545,1778638486000,-500.0,0.00013583,2]
[422158547,1778638486000,-121.00421947,0.00013583,2]
[422158548,1778638486000,-500.0,0.00013583,2]
[422158549,1778638486000,-500.0,0.00013583,2]
[422158550,1778638486000,-500.0,0.00013583,2]
[422158551,1778638486000,-378.99578053,0.00013583,2]
[422158552,1778638486000,-121.00421947,0.00013583,2]
[422158546,1778638486000,-378.99578053,0.00013583,2]
[422158559,1778638487000,-500.0,0.00013583,2]
[422158553,1778638487000,-500.0,0.00013583,2]
[422158554,1778638487000,-500.0,0.00013583,2]
[422158556,1778638487000,-378.99578053,0.00013583,2]
[422158557,1778638487000,-121.00421947,0.00013583,2]
[422158558,1778638487000,-500.0,0.00013583,2]
[422158555,1778638487000,-500.0,0.00013583,2]
[422158561,1778638487000,-378.99578053,0.00013583,2]
[422158562,1778638487000,-121.00421947,0.00013583,2]
[422158563,1778638487000,-500.0,0.00013583,2]
[422158564,1778638487000,-500.0,0.00013583,2]
[422158567,1778638487000,-121.00421947,0.00013583,2]
[422158565,1778638487000,-500.0,0.00013583,2]
[422158566,1778638487000,-378.99578053,0.00013583,2]
[422158560,1778638487000,-500.0,0.00013583,2]
[422158569,1778638488000,-500.0,0.00013583,2]
[422158568,1778638488000,-500.0,0.00013583,2]
[422158570,1778638488000,-500.0,0.00013583,2]
[422158571,1778638488000,-378.99578053,0.00013583,2]
[422158573,1778638488000,-500.0,0.00013583,2]
[422158572,1778638488000,-121.00421947,0.00013583,2]
[422158574,1778638488000,-500.0,0.00013583,2]
[422158575,1778638488000,-500.0,0.00013583,2]
[422158576,1778638488000,-378.99578053,0.00013583,2]
[422158577,1778638488000,-121.00421947,0.00013583,2]
[422158578,1778638488000,-500.0,0.00013583,2]
[422158579,1778638488000,-500.0,0.00013583,2]
[422158581,1778638488000,-378.99578053,0.00013583,2]
[422158580,1778638488000,-500.0,0.00013583,2]
[422158582,1778638489000,-121.00421947,0.00013583,2]
[422158584,1778638489000,-500.0,0.00013583,2]
[422158583,1778638489000,-400.79590248,0.00013583,2]
[422158585,1778638489000,-500.0,0.00013583,2]
[422158586,1778638489000,-478.19987805,0.00013583,2]
[422158587,1778638489000,-21.80012195,0.00013583,2]
[422158588,1778638489000,-500.0,0.00013583,2]
[422158597,1778638489000,-252.33256463,0.00013583,2]
[422158590,1778638489000,-500.0,0.00013583,2]
[422158591,1778638489000,-478.19987805,0.00013583,2]
[422158592,1778638489000,-21.80012195,0.00013583,2]
[422158593,1778638489000,-500.0,0.00013583,2]
[422158595,1778638489000,-225.86731342,0.00013583,2]
[422158596,1778638489000,-500.0,0.00013583,2]
[422158594,1778638489000,-500.0,0.00013583,2]
[422158589,1778638489000,-500.0,0.00013583,2]
[422158599,1778638490000,-500.0,0.00013583,2]
[422158598,1778638490000,-247.66743537,0.00013583,2]
[422158604,1778638490000,-500.0,0.00013583,2]
[422158601,1778638490000,-550.0,0.00013583,2]
[422158602,1778638490000,-202.33256463,0.00013583,2]
[422158605,1778638490000,-500.0,0.00013583,2]
[422158600,1778638490000,-500.0,0.00013583,2]
[422158606,1778638490000,-500.0,0.00013583,2]
[422158612,1778638490000,-202.33256463,0.00013583,2]
[422158611,1778638490000,-500.0,0.00013583,2]
[422158609,1778638490000,-500.0,0.00013583,2]
[422158603,1778638490000,-297.66743537,0.00013583,2]
[422158608,1778638490000,-297.66743537,0.00013583,2]
[422158607,1778638490000,-202.33256463,0.00013583,2]
[422158610,1778638490000,-500.0,0.00013583,2]
[422158614,1778638492000,-500.0,0.00013583,2]
[422158613,1778638492000,-297.66743537,0.00013583,2]
[422158615,1778638492000,-500.0,0.00013583,2]
[422158616,1778638492000,-500.0,0.00013583,2]
[422158618,1778638492000,-297.66743537,0.00013583,2]
[422158617,1778638492000,-202.33256463,0.00013583,2]
[422158620,1778638492000,-151.62318831,0.00013583,2]
[422158621,1778638492000,-203.62676671,0.00013583,2]
[422158622,1778638492000,-248.85676861,0.00013583,2]
[422158623,1778638492000,-598.225841,0.00013584,2]
[422158624,1778638492000,-2000.0,0.00013584,2]
[422158619,1778638492000,-500.0,0.00013583,2]
[422158625,1778638493000,-2000.0,0.00013584,2]
[422158629,1778638504000,-2000.0,0.00013584,2]
[422158628,1778638504000,-650.0,0.00013584,2]
[422158627,1778638504000,-150.0,0.00013583,2]
[422158626,1778638504000,-1200.0,0.00013583,2]
[422158630,1778638505000,-2000.0,0.00013584,2]
[422158632,1778638505000,-2000.0,0.00013584,2]
[422158631,1778638505000,-2000.0,0.00013584,2]
[422158634,1778638506000,-2000.0,0.00013584,2]
[422158633,1778638506000,-2000.0,0.00013584,2]
[422158638,1778638507000,-2000.0,0.00013584,2]
[422158637,1778638507000,-1800.0,0.00013584,2]
[422158636,1778638507000,-200.0,0.00013584,2]
[422158635,1778638507000,-2000.0,0.00013584,2]
[422158640,1778638508000,-2000.0,0.00013584,2]
[422158639,1778638508000,-2000.0,0.00013584,2]
[422158643,1778638509000,-2000.0,0.00013584,2]
[422158642,1778638509000,-2000.0,0.00013584,2]
[422158641,1778638509000,-2000.0,0.00013584,2]
[422158645,1778638560000,-167.97,0.00012919,2]
[422158647,1778638560000,-230.47,0.0001296,2]
[422158649,1778638560000,-500.0,0.00013583,2]
[422158648,1778638560000,-500.0,0.00013583,2]
[422158650,1778638560000,-139.5178,0.00013583,2]
[422158646,1778638560000,-462.0422,0.00012958,2]
[422158655,1778638561000,-127.87160522,0.00013583,2]
[422158654,1778638561000,-500.0,0.00013583,2]
[422158652,1778638561000,-500.0,0.00013583,2]
[422158653,1778638561000,-511.64619478,0.00013583,2]
[422158651,1778638561000,-360.4822,0.00013583,2]
[422158656,1778638562000,-372.12839478,0.00013583,2]
[422158659,1778638562000,-500.0,0.00013583,2]
[422158657,1778638562000,-500.0,0.00013583,2]
[422158660,1778638562000,-127.87160522,0.00013583,2]
[422158658,1778638562000,-500.0,0.00013583,2]
[422158663,1778638562000,-500.0,0.00013583,2]
[422158665,1778638562000,-118.22155081,0.00013583,2]
[422158661,1778638562000,-372.12839478,0.00013583,2]
[422158662,1778638562000,-509.65005441,0.00013583,2]
[422158664,1778638562000,-500.0,0.00013583,2]
[422158669,1778638563000,-2000.0,0.00013584,2]
[422158666,1778638563000,-165.13553091,0.00013583,2]
[422158670,1778638563000,-2000.0,0.00013584,2]
[422158668,1778638563000,-1504.36005184,0.00013584,2]
[422158667,1778638563000,-330.50441725,0.00013584,2]
[422158672,1778638564000,-2000.0,0.00013584,2]
[422158671,1778638564000,-2000.0,0.00013584,2]
[422158673,1778638566000,-2000.0,0.00013584,2]
[422158675,1778638570000,-2000.0,0.00013574,2]
[422158674,1778638570000,-2000.0,0.00013574,2]
[422158676,1778638571000,-2000.0,0.00013574,2]
[422158678,1778638571000,-2000.0,0.00013574,2]
[422158677,1778638571000,-2000.0,0.00013574,2]
[422158680,1778638572000,-2000.0,0.00013574,2]
[422158679,1778638572000,-2000.0,0.00013574,2]
[422158681,1778638572000,-2000.0,0.00013574,2]
[422158683,1778638573000,-2000.0,0.00013574,2]
[422158682,1778638573000,-2000.0,0.00013574,2]
[422158686,1778638574000,-2000.0,0.00013574,2]
[422158685,1778638574000,-2000.0,0.00013574,2]
[422158684,1778638574000,-2000.0,0.00013574,2]
[422158688,1778638575000,-1643.4536839,0.00013574,2]
[422158687,1778638575000,-2000.0,0.00013574,2]
[422158689,1778638575000,-356.5463161,0.00013583,2]
[422158692,1778638575000,-1569.01409638,0.00013584,2]
[422158691,1778638575000,-430.98590362,0.00013583,2]
[422158693,1778638576000,-2000.0,0.00013584,2]
[422158694,1778638576000,-2000.0,0.00013584,2]
[422158698,1778638577000,-2000.0,0.00013584,2]
[422158697,1778638577000,-2000.0,0.00013584,2]
[422158696,1778638577000,-2000.0,0.00013584,2]
[422158695,1778638577000,-2000.0,0.00013584,2]
[422158700,1778638578000,-2000.0,0.00013584,2]
[422158699,1778638578000,-2000.0,0.00013584,2]
[422158701,1778638579000,-2000.0,0.00013584,2]
[422158703,1778638579000,-2000.0,0.00013584,2]
[422158702,1778638579000,-2000.0,0.00013584,2]
[422158706,1778638581000,-2000.0,0.00013507,2]
[422158705,1778638581000,-2000.0,0.00013507,2]
[422158704,1778638581000,-2000.0,0.00013584,2]
[422158708,1778638582000,-460.5572669,0.00013584,2]
[422158707,1778638582000,-1539.4427331,0.00013507,2]
[422158710,1778638583000,-2000.0,0.00013584,2]
[422158709,1778638583000,-2000.0,0.00013584,2]
[422158711,1778638584000,-2000.0,0.00013584,2]
[422158712,1778638584000,-2000.0,0.00013584,2]
[422158713,1778638584000,-2000.0,0.00013584,2]
[422158715,1778638585000,-2000.0,0.00013584,2]
[422158714,1778638585000,-2000.0,0.00013584,2]
[422158717,1778638586000,-2000.0,0.00013584,2]
[422158719,1778638586000,-2000.0,0.00013584,2]
[422158718,1778638586000,-2000.0,0.00013584,2]
[422158722,1778638587000,-2000.0,0.00013584,2]
[422158721,1778638587000,-2000.0,0.00013584,2]
[422158720,1778638587000,-2000.0,0.00013584,2]
[422158724,1778638588000,-2000.0,0.00013584,2]
[422158723,1778638588000,-2000.0,0.00013584,2]
[422158725,1778638589000,-2000.0,0.00013584,2]
[422158726,1778638590000,-2000.0,0.00013584,2]
[422158727,1778638591000,-2000.0,0.00013584,2]
[422158728,1778638592000,-2000.0,0.00013584,2]
[422158730,1778638608000,2626.76,0.00041244,120]
[422158731,1778638618000,-2000.0,0.00012938,2]
[422158733,1778638619000,-2000.0,0.00012938,2]
[422158736,1778638624000,-2000.0,0.00012938,2]
[422158735,1778638624000,-2000.0,0.00012938,2]
[422158738,1778638626000,-768.19,0.00013574,2]
[422158737,1778638626000,-1231.81,0.00012938,2]
[422158739,1778638630000,152.0,0.00013724,7]
[422158740,1778638631000,-2000.0,0.00013574,2]
[422158741,1778638631000,152.0,0.00013738,7]
[422158742,1778638631000,-2000.0,0.00013574,2]
[422158744,1778638632000,-2000.0,0.00013574,2]
[422158743,1778638632000,-2000.0,0.00013574,2]
[422158746,1778638633000,-2000.0,0.00013574,2]
[422158745,1778638633000,-2000.0,0.00013574,2]
[422158749,1778638634000,-2000.0,0.00013574,2]
[422158748,1778638634000,-2000.0,0.00013574,2]
[422158747,1778638634000,-2000.0,0.00013574,2]
[422158750,1778638635000,-2000.0,0.00013574,2]
[422158751,1778638641000,-2000.0,0.00013574,2]
[422158752,1778638642000,-2000.0,0.00013574,2]
[422158753,1778638642000,-2000.0,0.00013574,2]
[422158754,1778638643000,-2000.0,0.00013574,2]
[422158755,1778638643000,-2000.0,0.00013574,2]
[422158756,1778638644000,-2000.0,0.00013574,2]
[422158757,1778638645000,-2000.0,0.00013574,2]
[422158758,1778638646000,-2000.0,0.00013574,2]
[422158759,1778638647000,-2000.0,0.00013574,2]
[422158760,1778638648000,-2000.0,0.00013574,2]
[422158761,1778638650000,152.0,0.00013738,7]
[422158762,1778638662000,-2000.0,0.00013513,2]
[422158764,1778638665000,-1400.0,0.00013513,2]
[422158763,1778638665000,-500.0,0.0001288,2]
[422158766,1778638783000,500.0,0.00041244,120]
[422158770,1778638784000,500.0,0.00041244,120]
[422158767,1778638784000,500.0,0.00041244,120]
[422158771,1778638784000,500.0,0.00041244,120]
[422158769,1778638784000,500.0,0.00041244,120]
[422158768,1778638784000,500.0,0.00041244,120]
[422158775,1778638785000,500.0,0.00041244,120]
[422158774,1778638785000,500.0,0.00041244,120]
[422158773,1778638785000,500.0,0.00041244,120]
[422158772,1778638785000,500.0,0.00041244,120]
[422158776,1778638786000,500.0,0.00041244,120]
[422158777,1778638786000,373.25506969,0.00041244,120]
[422158783,1778639005000,157.98,6.506e-05,2]
[422158785,1778639079000,500.0,0.00041421,120]
[422158786,1778639079000,155.6231834,0.00041421,120]
[422158787,1778639088000,158.99610512,0.00041421,120]
[422158789,1778639207000,-222.15502426,0.00012601,2]
[422158790,1778639225000,152.0,0.00013744,7]
[422158791,1778639280000,249.41829744,0.00012601,21]
[422158792,1778639281000,374.12744618,0.00013196,21]
[422158793,1778639326000,45000.0,0.00041422,120]
[422158795,1778639367000,-1642.9,0.00012579,2]
[422158794,1778639367000,-500.0,0.00012564,2]
[422158796,1778639367000,-74.46818739,0.00012586,2]
[422158797,1778639368000,363.03242668,0.00041422,120]
[422158801,1778639402000,3258.5,0.0001,2]
[422158822,1778639432000,-500.0,0.00013406,2]
[422158826,1778639432000,-500.0,0.00013406,2]
[422158820,1778639432000,-249.43811419,0.00013406,2]
[422158821,1778639432000,-500.0,0.00013406,2]
[422158819,1778639432000,-150.0,0.00013406,2]
[422158815,1778639432000,-166.45,0.00013196,2]
[422158816,1778639432000,-156.84,0.0001336,2]
[422158818,1778639432000,-1200.0,0.00013406,2]
[422158817,1778639432000,-358.85145659,0.00013397,2]
[422158828,1778639432000,-251.75503808,0.00013406,2]
[422158812,1778639432000,-157.33553878,0.00012874,2]
[422158811,1778639432000,-157.98,0.00012758,2]
[422158810,1778639432000,-224.96933126,0.00012658,2]
[422158809,1778639432000,-1777.84497574,0.00012601,2]
[422158808,1778639432000,-103.02181266,0.00012586,2]
[422158805,1778639432000,-2109.85,0.0001256,2]
[422158806,1778639432000,-156.84,0.00012574,2]
[422158807,1778639432000,-22.50999995,0.00012586,2]
[422158813,1778639432000,-1952.51446122,0.00012874,2]
[422158814,1778639432000,-2109.85,0.00013188,2]
[422158823,1778639432000,-200.4821766,0.00013406,2]
[422158825,1778639432000,-297.68082849,0.00013406,2]
[422158824,1778639432000,-500.0,0.00013406,2]
[422158855,1778639432000,-1481.28,0.00013407,2]
[422158853,1778639432000,-500.0,0.00013406,2]
[422158854,1778639432000,-500.0,0.00013406,2]
[422158845,1778639432000,-500.0,0.00013406,2]
[422158842,1778639432000,-1254.41808677,0.00013407,2]
[422158841,1778639432000,-189826.2696663,0.00013407,2]
[422158838,1778639432000,-716731.61012052,0.00013407,2]
[422158839,1778639432000,-172609.59330417,0.00013407,2]
[422158834,1778639432000,-500.0,0.00013406,2]
[422158847,1778639432000,-1611.78030549,0.00013407,2]
[422158840,1778639432000,-133766.76526633,0.00013407,2]
[422158829,1778639432000,-500.0,0.00013406,2]